bitfinex/quotes_BTCUSD_20250716
["timestamp","ask_amount","ask_price","bid_price","bid_amount"]
[1752686948505,0.72457296,119640.0,119630.0,0.55623328]
[1752686948713,0.72457296,119640.0,119630.0,0.66830928]
[1752686948915,0.72457296,119640.0,119630.0,0.53114928]
[1752686949111,0.26599547,119640.0,119630.0,0.53114928]
[1752686949319,0.26599547,119640.0,119630.0,0.45783328]
[1752686949745,0.26599547,119640.0,119630.0,0.66075328]
[1752686949956,0.72457296,119640.0,119630.0,0.627711]
[1752686950148,0.72457296,119640.0,119630.0,0.287711]
[1752686950363,0.20052547,119640.0,119630.0,1.019933]
[1752686950538,0.18598462,119640.0,119630.0,2.43700228]
[1752686950739,0.18598462,119640.0,119630.0,2.43696228]
[1752686951159,0.19224246,119640.0,119630.0,2.44001228]
[1752686951358,0.18388448,119640.0,119630.0,2.60719442]
[1752686951596,0.18388448,119640.0,119630.0,2.44001228]
[1752686951814,0.01671631,119640.0,119630.0,2.62391213]
[1752686952023,0.19224281,119640.0,119630.0,2.65391213]
[1752686952430,0.19224281,119640.0,119630.0,2.66227081]
[1752686952631,0.01035764,119650.0,119640.0,0.53224253]
[1752686952857,0.01035764,119650.0,119640.0,2.61537885]
[1752686952858,0.18586926,119650.0,119640.0,2.61537885]
[1752686953067,0.18586919,119650.0,119640.0,2.65777387]
[1752686953273,0.19422641,119650.0,119640.0,2.65777387]
[1752686953476,0.18586919,119650.0,119640.0,2.65777387]
[1752686953684,0.17751176,119650.0,119640.0,2.64941575]
[1752686954121,0.17751176,119650.0,119640.0,2.65777394]
[1752686954527,0.17751176,119650.0,119640.0,2.71907394]
[1752686955543,0.17751176,119650.0,119640.0,2.91959394]
[1752686955723,0.17751176,119650.0,119640.0,1.01578194]
[1752686955931,0.16915419,119650.0,119640.0,2.88829401]
[1752686956330,0.16915419,119650.0,119640.0,2.8966522]
[1752686956584,0.16915419,119650.0,119640.0,2.9279522]
[1752686956784,0.002,119650.0,119640.0,1.67237532]
[1752686957028,0.003,119670.0,119660.0,0.53221042]
[1752686957239,0.01135582,119670.0,119660.0,3.15149019]
[1752686957454,0.02806795,119670.0,119660.0,3.15149019]
[1752686957659,0.03642391,119670.0,119660.0,2.6929127]
[1752686957869,0.2119069,119670.0,119660.0,2.54811618]
[1752686958127,0.03642433,119670.0,119660.0,2.70954595]
[1752686958331,0.03642433,119670.0,119660.0,2.71005108]
[1752686958332,0.02806809,119670.0,119660.0,2.71005108]
[1752686958949,0.20355059,119670.0,119660.0,2.70165456]
[1752686959160,0.03642433,119670.0,119660.0,2.70165456]
[1752686959368,0.03642433,119670.0,119660.0,2.70993108]
[1752686960122,0.03642433,119670.0,119660.0,2.71093108]
[1752686960330,0.02806809,119670.0,119660.0,2.71093108]
[1752686960616,0.01971157,119670.0,119660.0,2.71093108]
[1752686960763,0.0280676,119670.0,119660.0,2.57469108]
[1752686960953,0.03642377,119670.0,119660.0,2.71081108]
[1752686961736,0.0280676,119670.0,119660.0,2.71081108]
[1752686961946,0.20355003,119670.0,119660.0,2.68574131]
[1752686962150,0.20355003,119670.0,119660.0,2.65454131]
[1752686962360,0.03642377,119670.0,119660.0,2.6628979]
[1752686962596,0.03642377,119670.0,119660.0,2.56733442]
[1752686962742,0.21190634,119670.0,119660.0,2.68670131]
[1752686962995,0.20355066,119670.0,119660.0,2.69505797]
[1752686964561,0.19519477,119670.0,119660.0,2.69505797]
[1752686965396,0.19519477,119670.0,119660.0,2.70341456]
[1752686965806,0.22037874,119670.0,119660.0,2.29952741]
[1752686966004,0.22037874,119670.0,119660.0,0.65902741]
[1752686966005,0.71924091,119670.0,119660.0,0.65902741]
[1752686966215,0.71924091,119670.0,119660.0,0.99902741]
[1752686966432,0.26066342,119670.0,119660.0,0.65902741]
[1752686966631,0.26066342,119670.0,119660.0,0.22277541]
[1752686966910,0.26066342,119670.0,119660.0,0.42701541]
[1752686967110,0.26066342,119670.0,119660.0,0.56277541]
[1752686967347,0.26066342,119670.0,119660.0,1.43758041]
[1752686967561,0.26066342,119670.0,119660.0,2.43528741]
[1752686967747,0.26066342,119670.0,119660.0,2.29952741]
[1752686967894,0.26066342,119670.0,119660.0,0.56273541]
[1752686968099,0.26066342,119670.0,119660.0,0.42701541]
[1752686968292,0.26066342,119670.0,119660.0,2.43524741]
[1752686970915,0.26066342,119670.0,119660.0,0.56273541]
[1752686971319,0.26066342,119670.0,119660.0,1.94166241]
[1752686971523,0.26066342,119670.0,119660.0,2.10652341]
[1752686972150,0.26066342,119670.0,119660.0,2.38205841]
[1752686972365,0.26066342,119670.0,119660.0,2.35267741]
[1752686972594,0.26066342,119670.0,119660.0,2.13312641]
[1752686972811,0.26066342,119670.0,119660.0,2.15873512]
[1752686973066,0.26066342,119670.0,119660.0,2.46049612]
[1752686975653,0.26066342,119670.0,119660.0,2.32513612]
[1752686975847,0.26066342,119670.0,119660.0,2.46033612]
[1752686977021,0.26066342,119670.0,119660.0,0.58782412]
[1752686977493,0.26066342,119670.0,119660.0,1.65184812]
[1752686977731,0.26066342,119670.0,119660.0,0.58770412]
[1752686977944,0.26066342,119670.0,119660.0,1.93740712]
[1752686978061,0.26066342,119670.0,119660.0,1.93482312]
[1752686978279,0.26066342,119670.0,119660.0,2.32513612]
[1752686978493,0.71924091,119670.0,119660.0,0.86651312]
[1752686978688,0.71924091,119670.0,119660.0,0.73163312]
[1752686978891,0.71924091,119670.0,119660.0,0.50199384]
[1752686979120,0.72993473,119670.0,119660.0,0.50199384]
[1752686979319,0.72993473,119670.0,119660.0,0.65729984]
[1752686979520,0.72993473,119670.0,119660.0,0.50199384]
[1752686979936,0.72993473,119670.0,119660.0,0.50191384]
[1752686980293,0.72993473,119670.0,119660.0,0.36711384]
[1752686980503,0.72993473,119670.0,119660.0,0.50191384]
[1752686981074,0.71892098,119670.0,119660.0,0.50191384]
[1752686982909,0.26066342,119670.0,119660.0,0.50191384]
[1752686983130,0.71892098,119670.0,119660.0,0.36711384]
[1752686983344,0.71892098,119670.0,119660.0,0.02711384]
[1752686983565,0.1755411,119630.0,119620.0,0.09738841]
[1752686983775,0.1755411,119630.0,119620.0,2.19218128]
[1752686984076,0.1755411,119630.0,119620.0,2.6993774]
[1752686984278,0.19225881,119630.0,119620.0,2.4225691]
[1752686984731,0.19225881,119630.0,119620.0,2.7665691]
[1752686984891,0.01671757,119630.0,119620.0,2.75820965]
[1752686985094,0.03343493,119630.0,119620.0,2.76656896]
[1752686985322,0.2089761,119630.0,119620.0,2.76656896]
[1752686985523,0.04179396,119630.0,119620.0,2.76656896]
[1752686985745,0.02507597,119630.0,119620.0,2.76656896]
[1752686986112,0.04179396,119630.0,119620.0,2.76656896]
[1752686986408,0.04179396,119630.0,119620.0,2.81639046]
[1752686986876,0.03343493,119630.0,119620.0,2.81639046]
[1752686987311,0.04179396,119630.0,119620.0,2.81639046]
[1752686987519,0.2089761,119630.0,119620.0,2.81639046]
[1752686987737,0.04179396,119630.0,119620.0,2.81639046]
[1752686988197,0.20897673,119630.0,119620.0,2.8163906]
[1752686988421,0.20061805,119630.0,119620.0,2.79967163]
[1752686988630,0.19225923,119630.0,119620.0,2.80803129]
[1752686988841,0.19225923,119630.0,119620.0,2.74067988]
[1752686989073,0.18390027,119630.0,119620.0,2.73232022]
[1752686989304,0.17554124,119630.0,119620.0,2.73232022]
[1752686989556,0.17554124,119630.0,119620.0,2.52466437]
[1752686989557,0.16718214,119630.0,119620.0,2.52466437]
[1752686990218,0.16718214,119630.0,119620.0,2.53017837]
[1752686991084,0.16718214,119630.0,119620.0,2.69737449]
[1752686991286,0.17554124,119630.0,119620.0,2.53017837]
[1752686991720,0.17554124,119630.0,119620.0,2.70573429]
[1752686991924,0.17554124,119630.0,119620.0,2.71409402]
[1752686992786,0.17554124,119630.0,119620.0,2.53017837]
[1752686993642,0.17554124,119630.0,119620.0,2.49957837]
[1752686994061,0.18390013,119630.0,119620.0,2.68349388]
[1752686994271,0.18389985,119630.0,119620.0,2.73331285]
[1752686995327,0.1755265,119640.0,119630.0,0.19878214]
[1752686995545,0.17554124,119630.0,119620.0,0.61950146]
[1752686995756,0.18389978,119630.0,119620.0,2.60466974]
[1752686996007,0.18389978,119630.0,119620.0,2.73870974]
[1752686996215,0.17554124,119630.0,119620.0,2.74183002]
[1752686996458,0.18390013,119630.0,119620.0,2.75854927]
[1752686996917,0.18390013,119630.0,119620.0,2.76690872]
[1752686997125,0.01671764,119630.0,119620.0,2.76690823]
[1752686997352,0.02507618,119630.0,119620.0,2.76690823]
[1752686997786,0.03343514,119630.0,119620.0,2.63286823]
[1752686997975,0.17552448,119650.0,119640.0,0.3712]
[1752686998250,0.18388198,119650.0,119640.0,2.63549045]
[1752686998472,0.19222668,119650.0,119640.0,2.68480676]
[1752686998687,0.01671479,119650.0,119640.0,2.69316474]
[1752686998905,0.01671479,119650.0,119640.0,2.70152265]
[1752686999118,0.20058419,119650.0,119640.0,2.70152265]
[1752686999326,0.20058419,119650.0,119640.0,2.69316474]
[1752686999543,0.1838694,119650.0,119640.0,2.66809045]
[1752686999729,0.17551183,119650.0,119640.0,2.46832228]
[1752687000032,0.17551183,119650.0,119640.0,2.30320228]
[1752687000242,0.17551183,119650.0,119640.0,2.61260885]
[1752687000472,0.17551183,119650.0,119640.0,2.66092516]
[1752687000686,0.17552156,119660.0,119650.0,0.34]
[1752687000842,0.17552156,119660.0,119650.0,2.60099647]
[1752687001002,0.17552156,119660.0,119650.0,2.43696228]
[1752687001206,0.17750156,119660.0,119650.0,2.43696228]
[1752687001609,0.17750156,119660.0,119650.0,2.29802228]
[1752687001811,0.71867997,119660.0,119650.0,0.34]
[1752687002064,0.24528448,119640.0,119630.0,0.025084]
[1752687002261,0.72006289,119640.0,119630.0,0.537194]
[1752687002492,0.72006289,119640.0,119630.0,0.51211]
[1752687002493,0.72304289,119640.0,119630.0,0.51211]
[1752687002660,0.72304289,119640.0,119630.0,0.45544]
[1752687003059,0.73425752,119640.0,119630.0,0.45544]
[1752687003260,0.73425752,119640.0,119630.0,0.453927]
[1752687003660,0.73425752,119640.0,119630.0,0.45384498]
[1752687003841,0.73425752,119640.0,119630.0,0.45484498]
[1752687004477,0.73425752,119640.0,119630.0,0.65206898]
[1752687004691,0.73425752,119640.0,119630.0,0.65106898]
[1752687004896,0.73525752,119640.0,119630.0,0.65106898]
[1752687005230,0.73525752,119640.0,119630.0,0.13387798]
[1752687005436,0.26578533,119640.0,119630.0,1.2330009]
[1752687005641,0.73525752,119640.0,119630.0,1.2330009]
[1752687006263,0.73525752,119640.0,119630.0,2.0063079]
[1752687006792,0.73525752,119640.0,119630.0,0.5173559]
[1752687006969,0.26578533,119640.0,119630.0,0.3404119]
[1752687007169,0.7241888,119640.0,119630.0,0.1337959]
[1752687007365,0.7241888,119640.0,119630.0,0.2556489]
[1752687007782,0.26578533,119640.0,119630.0,0.2556489]
[1752687011894,0.18686448,119640.0,119630.0,0.34321918]
[1752687012597,0.18686448,119640.0,119630.0,0.34115918]
[1752687012971,0.22234448,119640.0,119630.0,0.34115918]
[1752687013187,0.25204448,119640.0,119630.0,0.34115918]
[1752687013778,0.22234448,119640.0,119630.0,0.34115918]
[1752687013998,0.18686448,119640.0,119630.0,0.34115918]
[1752687014579,0.18686448,119640.0,119630.0,0.21930618]
[1752687014820,0.18686448,119640.0,119630.0,2.09181818]
[1752687015035,0.18686448,119640.0,119630.0,2.00903718]
[1752687015447,0.22088448,119640.0,119630.0,2.00702718]
[1752687015668,0.18686448,119640.0,119630.0,2.00903718]
[1752687016284,0.18686448,119640.0,119630.0,2.01214718]
[1752687017128,0.18686448,119640.0,119630.0,2.00903718]
[1752687017556,0.18998448,119640.0,119630.0,0.63390018]
[1752687017761,0.24768448,119640.0,119630.0,0.61009018]
[1752687018941,0.21888448,119640.0,119630.0,0.61009018]
[1752687019149,0.18686448,119640.0,119630.0,0.61521018]
[1752687020926,0.18686448,119640.0,119630.0,0.61210018]
[1752687021102,0.21756448,119640.0,119630.0,0.61009018]
[1752687021324,0.22068448,119640.0,119630.0,0.61009018]
[1752687021539,0.25208448,119640.0,119630.0,0.47629428]
[1752687021742,0.71048795,119640.0,119630.0,0.47629428]
[1752687021946,0.71048795,119640.0,119630.0,0.46181628]
[1752687023561,0.25208448,119640.0,119630.0,0.46181628]
[1752687024530,0.24795835,119640.0,119630.0,0.46181628]
[1752687026388,0.18389999,119630.0,119620.0,0.34215059]
[1752687026601,0.72119431,119630.0,119620.0,0.48536059]
[1752687026805,0.72119431,119630.0,119620.0,0.58598959]
[1752687027035,0.73237298,119630.0,119620.0,0.47591059]
[1752687027243,0.73237298,119630.0,119620.0,0.58598959]
[1752687027659,0.73337298,119630.0,119620.0,0.00215059]
[1752687027862,0.73337298,119630.0,119620.0,0.13591059]
[1752687028749,0.26379084,119630.0,119620.0,0.31484059]
[1752687028967,0.21622999,119630.0,119620.0,0.40236087]
[1752687029178,0.18489999,119630.0,119620.0,2.46881287]
[1752687029392,0.18489999,119630.0,119620.0,2.49791287]
[1752687030036,0.18489999,119630.0,119620.0,2.46881287]
[1752687030704,0.18489999,119630.0,119620.0,2.50021287]
[1752687032789,0.0260759,119630.0,119620.0,3.14535086]
[1752687032996,0.00935847,119630.0,119620.0,3.17042928]
[1752687033203,0.001,119630.0,119620.0,3.17042928]
[1752687033606,0.001,119630.0,119620.0,2.70084714]
[1752687033805,0.04179004,119640.0,119630.0,0.5322586]
[1752687034007,0.04179004,119640.0,119630.0,3.02217302]
[1752687034008,0.03343178,119640.0,119630.0,3.02217302]
[1752687034216,0.0417899,119640.0,119630.0,3.02528302]
[1752687034642,0.18386926,119650.0,119640.0,0.23582657]
[1752687034860,0.18386926,119650.0,119640.0,2.32957885]
[1752687035064,0.18386926,119650.0,119640.0,2.32433045]
[1752687035278,0.18386926,119650.0,119640.0,2.15716228]
[1752687035481,0.18386926,119650.0,119640.0,2.32433045]
[1752687035881,0.18386926,119650.0,119640.0,2.33268885]
[1752687036378,0.01671465,119650.0,119640.0,2.35776328]
[1752687036580,0.20058418,119650.0,119640.0,2.81898744]
[1752687036781,0.20058418,119650.0,119640.0,2.34104711]
[1752687036906,0.19222696,119650.0,119640.0,2.34104711]
[1752687037265,0.19222696,119650.0,119640.0,2.35776328]
[1752687037466,0.19222696,119650.0,119640.0,2.35776335]
[1752687037956,0.01671465,119650.0,119640.0,2.36612133]
[1752687038138,0.01671486,119650.0,119640.0,2.81898681]
[1752687038736,0.02507229,119650.0,119640.0,2.82734472]
[1752687039174,0.02507229,119650.0,119640.0,2.81062883]
[1752687039382,0.03342999,119650.0,119640.0,2.81898681]
[1752687039591,0.17552156,119660.0,119650.0,0.0287]
[1752687039592,0.18387836,119660.0,119650.0,0.0287]
[1752687039803,0.18387836,119660.0,119650.0,2.16529998]
[1752687040239,0.18387836,119660.0,119650.0,2.34081167]
[1752687040447,0.18387836,119660.0,119650.0,2.33245417]
[1752687040699,0.17552156,119660.0,119650.0,2.33245417]
[1752687040911,0.17552156,119660.0,119650.0,2.34081167]
[1752687041322,0.16716455,119660.0,119650.0,2.15694228]
[1752687041552,0.16716455,119660.0,119650.0,2.12564228]
[1752687042230,0.16716455,119660.0,119650.0,1.99184228]
[1752687042459,0.16716455,119660.0,119650.0,2.12556228]
[1752687043107,0.16716455,119660.0,119650.0,0.25305028]
[1752687043542,0.16716455,119660.0,119650.0,2.12556228]
[1752687045468,0.16716455,119660.0,119650.0,2.15556228]
[1752687045686,0.16716455,119660.0,119650.0,2.32271647]
[1752687045905,0.16716455,119660.0,119650.0,2.15556228]
[1752687046143,0.16716455,119660.0,119650.0,2.33107417]
[1752687046352,0.16716455,119660.0,119650.0,2.33943167]
[1752687046555,0.16716455,119660.0,119650.0,2.33943181]
[1752687046807,0.17848257,119670.0,119660.0,0.3983]
[1752687047019,0.17848257,119670.0,119660.0,2.49510228]
[1752687047233,0.17848257,119670.0,119660.0,2.46690228]
[1752687047442,0.18051257,119670.0,119660.0,2.43680228]
[1752687047652,0.18051257,119670.0,119660.0,2.43382228]
[1752687048073,0.18051257,119670.0,119660.0,2.43397287]
[1752687048896,0.18251257,119670.0,119660.0,2.43397287]
[1752687049734,0.18251257,119670.0,119660.0,2.43695287]
[1752687049977,0.71288471,119670.0,119660.0,2.29817287]
[1752687050158,0.71288471,119670.0,119660.0,2.43185287]
[1752687050988,0.65209471,119670.0,119660.0,2.43185287]
[1752687051329,0.65209471,119670.0,119660.0,2.43397287]
[1752687051538,0.18251257,119670.0,119660.0,2.43695287]
[1752687051707,0.18048257,119670.0,119660.0,2.43695287]
[1752687053526,0.65006471,119670.0,119660.0,2.43695287]
[1752687053779,0.68508471,119670.0,119660.0,1.71882287]
[1752687053983,0.72762556,119670.0,119660.0,0.25555359]
[1752687054155,0.72762556,119670.0,119660.0,0.37217159]
[1752687054582,0.72762556,119670.0,119660.0,0.37218159]
[1752687055582,0.72762556,119670.0,119660.0,0.44024159]
[1752687056333,0.72762556,119670.0,119660.0,0.13379059]
[1752687058910,0.25804342,119670.0,119660.0,0.13379059]
[1752687059111,0.72762556,119670.0,119660.0,0.13379059]
[1752687061402,0.25804342,119670.0,119660.0,0.13379059]
[1752687061876,0.72762556,119670.0,119660.0,0.13379059]
[1752687062103,0.69962556,119670.0,119660.0,0.13379059]
[1752687062319,0.69962556,119670.0,119660.0,2.00630259]
[1752687062498,0.69962556,119670.0,119660.0,1.88144759]
[1752687062771,0.72832556,119670.0,119660.0,1.33773459]
[1752687063226,0.72832556,119670.0,119660.0,0.13379059]
[1752687063674,0.72824378,119670.0,119660.0,1.24319859]
[1752687063895,0.72824378,119670.0,119660.0,1.20319859]
[1752687065426,0.72824378,119670.0,119660.0,0.79219059]
[1752687066504,0.72824378,119670.0,119660.0,0.73917459]
[1752687066713,0.72824378,119670.0,119660.0,0.68428959]
[1752687067334,0.72824378,119670.0,119660.0,0.59111859]
[1752687067540,0.72824378,119670.0,119660.0,0.56659959]
[1752687067758,0.72824378,119670.0,119660.0,0.54866659]
[1752687068177,0.72824378,119670.0,119660.0,0.13379059]
[1752687070429,0.72824378,119670.0,119660.0,0.00015059]
[1752687070639,0.72824378,119670.0,119660.0,0.13379059]
[1752687072688,0.86188378,119670.0,119660.0,0.00015059]
[1752687074073,0.39230164,119670.0,119660.0,0.00015059]
[1752687074256,0.86188378,119670.0,119660.0,0.00015059]
[1752687074472,0.72824378,119670.0,119660.0,0.00015059]
[1752687074868,0.22996164,119670.0,119660.0,0.00015059]
[1752687075207,0.66655378,119670.0,119660.0,0.00516059]
[1752687075385,0.66655378,119670.0,119660.0,0.50516059]
[1752687075962,0.66655378,119670.0,119660.0,0.00516059]
[1752687076169,0.66655378,119670.0,119660.0,0.50516059]
[1752687076554,0.19697164,119670.0,119660.0,0.50516059]
[1752687076750,0.66655378,119670.0,119660.0,0.50516059]
[1752687077176,0.19697164,119670.0,119660.0,0.50516059]
[1752687077343,0.66655378,119670.0,119660.0,0.50516059]
[1752687078167,0.66655378,119670.0,119660.0,0.50220059]
[1752687078620,0.66655378,119670.0,119660.0,0.00220059]
[1752687078949,0.66655378,119670.0,119660.0,0.00015059]
[1752687079666,0.66655378,119670.0,119660.0,0.00220059]
[1752687079779,0.66655378,119670.0,119660.0,0.00015059]
[1752687079978,0.69742378,119670.0,119660.0,0.50015059]
[1752687081136,0.69742378,119670.0,119660.0,0.00015059]
[1752687081355,0.69742378,119670.0,119660.0,0.50015059]
[1752687081569,0.72492378,119670.0,119660.0,0.00015059]
[1752687081782,0.72492378,119670.0,119660.0,0.13375059]
[1752687083278,0.66452378,119670.0,119660.0,0.16290059]
[1752687083450,0.66452378,119670.0,119660.0,0.16586059]
[1752687083687,0.18040079,119670.0,119660.0,1.17084687]
[1752687083876,0.18040079,119670.0,119660.0,1.19744687]
[1752687084066,0.64998293,119670.0,119660.0,1.19744687]
[1752687084274,0.64998293,119670.0,119660.0,1.17084687]
[1752687084873,0.65199293,119670.0,119660.0,1.17084687]
[1752687085103,0.65199293,119670.0,119660.0,1.14374687]
[1752687085345,0.65199293,119670.0,119660.0,1.14078687]
[1752687085781,0.18241079,119670.0,119660.0,1.14078687]
[1752687086105,0.65199293,119670.0,119660.0,1.14078687]
[1752687088598,0.65199293,119670.0,119660.0,1.14374687]
[1752687089255,0.18040079,119670.0,119660.0,1.19634687]
[1752687089696,0.18040072,119670.0,119660.0,2.66488011]
[1752687089902,0.02998645,119670.0,119660.0,3.14281912]
[1752687090048,0.19711271,119670.0,119660.0,3.13446225]
[1752687090250,0.19711271,119670.0,119660.0,3.15117606]
[1752687090615,0.18875682,119670.0,119660.0,2.6565231]
[1752687091495,0.01327404,119670.0,119660.0,2.67323677]
[1752687091733,0.2054686,119670.0,119660.0,0.79236804]
[1752687091949,0.18875689,119670.0,119660.0,2.48938287]
[1752687092483,0.18875689,119670.0,119660.0,2.35578287]
[1752687092697,0.66034903,119670.0,119660.0,0.99216387]
[1752687092985,0.66034903,119670.0,119660.0,0.97586487]
[1752687093558,0.67805988,119670.0,119660.0,0.42566087]
[1752687093811,0.73195988,119670.0,119660.0,0.00015059]
[1752687094014,0.73195988,119670.0,119660.0,0.13371059]
[1752687095904,0.86551988,119670.0,119660.0,0.13371059]
[1752687097080,0.73195988,119670.0,119660.0,0.13371059]
[1752687098121,0.18168108,119660.0,119640.0,0.00296]
[1752687098324,0.17552643,119640.0,119630.0,0.55516]
[1752687098568,0.64510857,119640.0,119630.0,0.51589928]
[1752687098751,0.64510857,119640.0,119630.0,0.82933528]
[1752687099114,0.17552643,119640.0,119630.0,0.82933528]
[1752687099452,0.17552643,119640.0,119630.0,2.25162528]
[1752687099603,0.17552643,119640.0,119630.0,2.07899628]
[1752687100551,0.17552643,119640.0,119630.0,2.48861228]
[1752687101265,0.17552643,119640.0,119630.0,2.49061228]
[1752687102427,0.18388462,119640.0,119630.0,3.15280276]
[1752687102700,0.16715419,119650.0,119640.0,0.394]
[1752687102941,0.16715419,119650.0,119640.0,2.35407228]
[1752687103212,0.16715419,119650.0,119640.0,2.35703228]
[1752687104645,0.16715419,119650.0,119640.0,2.35803228]
[1752687106830,0.00342012,119670.0,119660.0,0.22004023]
[1752687107044,0.01177601,119670.0,119660.0,3.14321839]
[1752687107259,0.03684403,119670.0,119660.0,3.14321839]
[1752687107472,0.02849019,119670.0,119660.0,3.13486159]
[1752687107677,0.18726077,119670.0,119660.0,2.65692251]
[1752687107888,0.18726077,119670.0,119660.0,2.66527945]
[1752687108306,0.1838386,119670.0,119660.0,0.92994328]
[1752687108515,0.65342074,119670.0,119660.0,0.79634328]
[1752687108722,0.65342074,119670.0,119660.0,1.17010428]
[1752687108928,0.65342074,119670.0,119660.0,0.73456228]
[1752687109141,0.65542074,119670.0,119660.0,0.81360928]
[1752687109348,0.65342074,119670.0,119660.0,0.81360928]
[1752687109684,0.65342074,119670.0,119660.0,2.05415228]
[1752687109909,0.65342074,119670.0,119660.0,1.92059228]
[1752687110112,0.1838386,119670.0,119660.0,1.56600628]
[1752687110346,0.65540074,119670.0,119660.0,1.57786728]
[1752687110545,0.1858186,119670.0,119660.0,1.57786728]
[1752687110747,0.65540074,119670.0,119660.0,2.30316228]
[1752687110951,0.65540074,119670.0,119660.0,2.00438928]
[1752687111126,0.65540074,119670.0,119660.0,2.00538928]
[1752687111325,0.65540074,119670.0,119660.0,2.00853928]
[1752687111737,0.65540074,119670.0,119660.0,2.43772228]
[1752687111943,0.1858186,119670.0,119660.0,2.43772228]
[1752687112139,0.1838386,119670.0,119660.0,2.46392228]
[1752687112379,0.1838386,119670.0,119660.0,2.48972228]
[1752687113926,0.1838233,119680.0,119670.0,0.37455631]
[1752687114135,0.18382302,119680.0,119670.0,3.12548085]
[1752687114342,0.18382302,119680.0,119670.0,2.48877245]
[1752687115197,0.18382302,119680.0,119670.0,2.36062845]
[1752687115811,0.18482302,119680.0,119670.0,2.43673245]
[1752687116458,0.18482302,119680.0,119670.0,2.46263245]
[1752687118273,0.65638516,119680.0,119670.0,0.92912445]
[1752687118475,0.68454516,119680.0,119670.0,1.05750445]
[1752687118702,0.65638516,119680.0,119670.0,1.05949445]
[1752687118924,0.65638516,119680.0,119670.0,0.56107045]
[1752687119307,0.65638516,119680.0,119670.0,1.95547145]
[1752687119694,0.65934516,119680.0,119670.0,1.34765945]
[1752687119895,0.68474516,119680.0,119670.0,1.41083845]
[1752687120297,0.18976302,119680.0,119670.0,1.41083845]
[1752687120500,0.18680302,119680.0,119670.0,1.41083845]
[1752687120702,0.68684516,119680.0,119670.0,0.10623717]
[1752687121057,0.72728601,119680.0,119670.0,5.017e-05]
[1752687121230,0.72728601,119680.0,119670.0,0.26607717]
[1752687121398,0.72728601,119680.0,119670.0,0.13357017]
[1752687121805,0.72728601,119680.0,119670.0,0.23927717]
[1752687121998,0.72728601,119680.0,119670.0,0.13357017]
[1752687122197,0.72728601,119680.0,119670.0,5.017e-05]
[1752687122507,0.72728601,119680.0,119670.0,0.13357017]
[1752687122724,0.72728601,119680.0,119670.0,0.26018217]
[1752687123063,0.72728601,119680.0,119670.0,0.13357017]
[1752687123477,0.25770387,119680.0,119670.0,0.13357017]
[1752687123888,0.72728601,119680.0,119670.0,5.017e-05]
[1752687124097,0.72728601,119680.0,119670.0,0.13357017]
[1752687124305,0.72728601,119680.0,119670.0,0.24933417]
[1752687126141,0.67092601,119680.0,119670.0,0.24933417]
[1752687126686,0.67092601,119680.0,119670.0,0.25132417]
[1752687127142,0.67092601,119680.0,119670.0,0.25447417]
[1752687127661,0.20134387,119680.0,119670.0,0.27752417]
[1752687127870,0.18482302,119680.0,119670.0,0.73328445]
[1752687128069,0.18482302,119680.0,119670.0,0.59976445]
[1752687128282,0.65934516,119680.0,119670.0,0.45581417]
[1752687128487,0.72568601,119680.0,119670.0,0.13357017]
[1752687128686,0.72568601,119680.0,119670.0,0.60418117]
[1752687129143,0.69908601,119680.0,119670.0,0.60418117]
[1752687129552,0.65440516,119680.0,119670.0,0.60593242]
[1752687129761,0.18482302,119680.0,119670.0,0.60908242]
[1752687130380,0.18482302,119680.0,119670.0,0.63428242]
[1752687131393,0.18482302,119680.0,119670.0,0.634471]
[1752687131599,0.18482302,119680.0,119670.0,0.500951]
[1752687131820,0.18482302,119680.0,119670.0,0.634471]
[1752687132608,0.65638516,119680.0,119670.0,0.606121]
[1752687132816,0.68378516,119680.0,119670.0,0.604131]
[1752687133455,0.18680302,119680.0,119670.0,0.470611]
[1752687133663,0.65945516,119680.0,119670.0,0.604131]
[1752687133888,0.18987302,119680.0,119670.0,0.604131]
[1752687134091,0.65638516,119680.0,119670.0,0.604131]
[1752687134269,0.65638516,119680.0,119670.0,0.606081]
[1752687136158,0.65638516,119680.0,119670.0,0.472561]
[1752687136424,0.65638516,119680.0,119670.0,0.606081]
[1752687137120,0.65638516,119680.0,119670.0,0.609211]
[1752687137345,0.65440516,119680.0,119670.0,0.662711]
[1752687138587,0.65655516,119680.0,119670.0,0.635411]
[1752687138790,0.65655516,119680.0,119670.0,0.609211]
[1752687138991,0.65655516,119680.0,119670.0,0.606081]
[1752687139820,0.65655516,119680.0,119670.0,0.47547]
[1752687140031,0.65962516,119680.0,119670.0,0.673517]
[1752687140576,0.65655516,119680.0,119670.0,0.539997]
[1752687140797,0.65655516,119680.0,119670.0,0.675467]
[1752687141022,0.65655516,119680.0,119670.0,0.675427]
[1752687144774,0.65655516,119680.0,119650.0,0.05453]
[1752687144775,0.1754971,119660.0,119650.0,0.05453]
[1752687144929,0.17551176,119650.0,119640.0,0.55753]
[1752687145134,0.6450939,119650.0,119640.0,2.49148418]
[1752687145334,0.17551176,119650.0,119640.0,2.49148418]
[1752687146551,0.17551176,119650.0,119640.0,2.49348418]
[1752687147334,0.18386926,119650.0,119640.0,2.49348418]
[1752687147585,0.17551176,119650.0,119640.0,2.49348418]
[1752687147828,0.17551176,119650.0,119640.0,2.96306632]
[1752687148681,0.17551176,119650.0,119640.0,2.49348418]
[1752687150531,0.17551176,119650.0,119640.0,2.492821]
[1752687151316,0.17551176,119650.0,119640.0,0.620309]
[1752687151529,0.17551176,119650.0,119640.0,2.65998917]
[1752687151951,0.17551176,119650.0,119640.0,2.66834757]
[1752687152574,0.16714023,119660.0,119650.0,0.51551183]
[1752687152781,0.16714023,119660.0,119650.0,2.95713442]
[1752687152984,0.16714023,119660.0,119650.0,2.49068228]
[1752687153821,0.1838539,119660.0,119650.0,3.13737631]
[1752687154039,0.17549717,119660.0,119650.0,2.96186442]
[1752687154250,0.17549717,119660.0,119650.0,3.12901861]
[1752687154458,0.17549717,119660.0,119650.0,2.96186442]
[1752687154878,0.17549717,119660.0,119650.0,3.13737625]
[1752687155083,0.17549717,119660.0,119650.0,2.96186442]
[1752687155441,0.17549717,119660.0,119650.0,1.08935242]
[1752687155656,0.17549717,119660.0,119650.0,2.96186442]
[1752687155873,0.17549717,119660.0,119650.0,2.49228228]
[1752687156090,0.17549717,119660.0,119650.0,2.49224228]
[1752687159013,0.17549717,119660.0,119650.0,2.46484228]
[1752687159261,0.17549717,119660.0,119650.0,2.33140228]
[1752687159467,0.71794016,119660.0,119650.0,0.718455]
[1752687159673,0.71794016,119660.0,119650.0,0.690429]
[1752687160209,0.71794016,119660.0,119650.0,0.001]
[1752687160851,0.71794016,119660.0,119650.0,0.501]
[1752687161262,0.71794016,119660.0,119650.0,0.511]
[1752687162846,0.71794016,119660.0,119650.0,0.51]
[1752687163225,0.24835802,119660.0,119650.0,0.51]
[1752687163466,0.71794016,119660.0,119650.0,0.51]
[1752687164040,0.71794016,119660.0,119650.0,0.01]
[1752687164370,0.71794016,119660.0,119650.0,0.51]
[1752687165496,0.71994016,119660.0,119650.0,0.51]